Cogmind - Beta 17 @@@ ROGUE MODE // 2026.08.13 @ 19:47:59 Player: Alicianrone Result: Destroyed by YI-UF0 with YI-UF0's Doublenader Performance ------------- Evolutions (0) 0 Regions Visited (2) 400 Robots Destroyed (33) 165 Value Destroyed (699) 699 Prototype IDs (1) 20 Alien Tech Used (0) 0 Bonus (5444) 5444 TOTAL SCORE: 6728 Bonus ------- Prayed to X0-1V1 5000 Major X0-1V1 Interference 500 Friendly Fire -56 Cogmind --------- Core Integrity 0/200 Matter 107/300 Energy 75/100 System Corruption 0% Temperature Warm (128) Movement Treading (240) Ox1 Location -10/Mines Parts ------- > --- POWER (1) -------- (None) > --- PROPULSION (2) --- Light Treads Compact Wheel > --- UTILITY (2) ------ Large Storage Unit > --- WEAPON (2) ------- Heavy EM Pulse Gun > --- INVENTORY (15) --- Ion Engine Wheel Wheel Structural Scanner Light Assault Rifle Light Assault Rifle Improved Light Cannon Improved Light Cannon Improved Light Cannon Battle Cannon Grenade Launcher Mining Laser Heavy Hammer Peak State ------------ > --- POWER ------------ Light Nuclear Core > --- PROPULSION ------- Wheel Compact Wheel > --- UTILITY ---------- Large Storage Unit X0-1V1's Piety Tracker > --- WEAPON ----------- Improved Light Cannon Improved Light Cannon > --- INVENTORY -------- Ion Engine Ion Engine Light Treads Light Treads Light Treads Light Treads Wheel Medium Battery Structural Scanner Backup Plating I Heavy EM Pulse Gun Heavy EM Pulse Gun Improved Light Cannon Improved Light Cannon Heavy Hammer [Rating: 25] Favorites ----------- Power Light Nuclear Core Engine Ion Engine Power Core Light Nuclear Core Propulsion Compact Wheel Treads Light Treads Wheel Compact Wheel Utility Large Storage Unit Device Heat Sink Storage Large Storage Unit Protection Backup Plating I Weapon Improved Light Cannon Energy Gun Medium Laser Energy Cannon Beam Cannon Ballistic Gun Light Assault Rifle Ballistic Cannon Improved Light Cannon Launcher Grenade Launcher Build | -11 -10 -10 ------- Run | Yrd Mat Min Slots Evolved . | . . . Power . | . . . Propulsion . | . . . Utility . | . . . Weapon . | . . . Parts Attached 28 | 7 12 9 Power 4 | 1 3 . Engine 3 | 1 2 . Core 1 | . 1 . Reactor . | . . . Propulsion 6 | 2 2 2 Treads 4 | . 2 2 Leg . | . . . Wheel 2 | 2 . . Hover . | . . . Flight . | . . . Utility 6 | 2 3 1 Device 3 | 1 2 . Storage 2 | 1 1 . Processor . | . . . Hackware . | . . . Protection 1 | . . 1 Artifact . | . . . Weapon 12 | 2 4 6 Energy Gun 4 | 2 . 2 Energy Cannon 1 | . 1 . Ballistic Gun 2 | . . 2 Ballistic Cannon 4 | . 3 1 Launcher 1 | . . 1 Special Weapon . | . . . Impact Weapon . | . . . Slashing Weapon . | . . . Piercing Weapon . | . . . Special Melee Weapon . | . . . Unidentified Prototypes 1 | . 1 . Parts Lost 5 | . 1 4 Power 1 | . . 1 Propulsion . | . . . Utility 2 | . 1 1 Weapon 2 | . . 2 Highest Loss Streak 3 | . 1 3 To Critical Strikes . | . . . Average Backups 10 | 1 10 13 Power 1 | . 1 1 Propulsion 4 | 1 4 3 Utility 2 | . 2 2 Weapon 3 | . 2 6 Tool/Special . | . . . Unused Backups 8 | . 1 7 Power 1 | . . 1 Propulsion 1 | . . 1 Utility 3 | . 1 2 Weapon 3 | . . 3 Tool/Special . | . . . Average Slot Usage (%) 99 | . 99 98 Engine 8 | . 10 . Core 5 | . 3 13 Treads 4 | . 4 8 Wheel 23 | . 24 19 Device 13 | . 13 10 Storage 14 | . 14 14 Energy Gun 7 | . 7 5 Energy Cannon 1 | . 1 . Ballistic Cannon 19 | . 19 19 Peak Build Rating 25 | 7 25 25 Average Rating 11 | 5 10 20 On Entrance 10 | . 7 24 Avg Prop Armor Cover (%) 10 | . . 10 Naked Turns . | . . . Heaviest Build 34 | 12 34 34 Greatest Support 40 | 26 40 40 Greatest Overweight (x) 1 | . 1 1 Average Overweight (x) . | . . . Largest Inventory Capacity 15 | 8 15 15 Average Capacity 14 | 7 14 15 Most Carried 15 | 2 15 15 Average Carried 10 | 1 10 13 Final Capacity 15 | 8 15 15 Final Carried 14 | 2 14 13 Class Distribution -------------------- 100% | Mutant Dominant Class ---------------- Mutant | -10/Materials Mutant | -10/Mines Resources | -11 -10 -10 ----------- Run | Yrd Mat Min Matter Collected 878 | 270 476 132 Remotely . | . . . Salvage Created 740 | 80 569 91 Parts 53 | 3 38 12 Haulers Intercepted 2 | . 2 . Recyclers Shooed 1 | 1 . . Parts Field Recycled . | . . . Retrieved Matter . | . . . Parts Self-Destructed . | . . . Prevented . | . . . Parts Restored . | . . . Kills | -11 -10 -10 ------- Run | Yrd Mat Min Combat Hostiles Destroyed 22 | . 15 7 Guns 5 | . 5 . Cannons 13 | . 10 3 AOE 4 | . . 4 Classes Destroyed 9 | 2 7 . Worker 2 | . 2 . Builder 1 | . 1 . Tunneler 1 | 1 . . Hauler 2 | . 2 . Recycler 1 | 1 . . Operator 1 | . 1 . Watcher 3 | . 3 . Swarmer 9 | . 6 3 Grunt 13 | . 9 4 Best Kill Streak 4 | 2 4 3 Combat Bots Only 3 | . 3 3 Max Kills in Single Turn 3 | 1 2 3 Gunslinging . | . . . Exploded 3 | . . 3 Melee . | . . . Uniques/NPCs Destroyed . | . . . Combat | -11 -10 -10 -------- Run | Yrd Mat Min Hostile Shots Fired 115 | . 69 46 Missed 30 | . 17 13 Hits 85 | . 52 33 Projectile 85 | . 52 33 AOE 13 | . . 13 Critical Strikes 2 | . 1 1 Damage Taken 1209 | . 450 759 Core 295 | . 71 224 Absorbed by Shields . | . . . Core Remaining (%) 100 | 100 . . Volleys Fired 75 | 5 47 23 Largest 2 | 2 2 2 Hottest 90 | 90 90 90 Shots Fired 148 | 10 94 44 Gun 55 | 10 31 14 Cannon 91 | . 63 28 Launcher 2 | . . 2 Special . | . . . Kinetic 84 | . 56 28 Thermal 48 | 10 38 . Explosive 2 | . . 2 Electromagnetic 14 | . . 14 Robot Hit Streak 11 | 2 7 11 Robot Miss Streak 8 | 1 8 3 Penetration Max . | . . . Secondary Targets . | . . . Shots Hit Robots 77 | 5 48 24 Core Hits 40 | 3 26 11 Critical Kills . | . . . Critical Parts Destroyed . | . . . Critical Strikes 3 | . 2 1 Burn 1 | . 1 . Blast 2 | . 1 1 Melee Attacks . | . . . Impact . | . . . Slashing . | . . . Piercing . | . . . Sneak Attacks . | . . . Combat Hostiles . | . . . Follow-up Attacks . | . . . Damage Inflicted 1529 | 55 860 614 Guns 343 | 55 212 76 Cannons 1003 | . 648 355 Explosions 183 | . . 183 Melee . | . . . Ramming . | . . . Kinetic 898 | . 543 355 Thermal 411 | 55 317 39 Explosive 144 | . . 144 Electromagnetic 76 | . . 76 Impact . | . . . Slashing . | . . . Piercing . | . . . Highest Corruption . | . . . Average Corruption . | . . . Corruption Purged . | . . . Corruption Blocked . | . . . Overload Shots . | . . . Overflow Damage 13 | . 12 1 Projectiles 12 | . 12 . Explosions 1 | . . 1 Melee . | . . . Knockbacks 6 | . 4 2 Impact . | . . . Kinetic 6 | . 4 2 Secondary . | . . . Self-Inflicted Damage . | . . . Shots . | . . . Rammed . | . . . Targets Rammed . | . . . Kicked . | . . . Crushed . | . . . Highest Temperature 257 | 110 180 257 Average Temperature 75 | 50 58 105 Received Heat Transfer 261 | . 72 189 Siege Activations . | . . . Martial Activations . | . . . Shielding Activations . | . . . Robots Disrupted . | . . . Combat Hostiles . | . . . Robots Corrupted . | . . . Combat Hostiles . | . . . Parts Fried . | . . . Impact Corruptions . | . . . Robots Melted . | . . . Combat Hostiles . | . . . Parts Melted 1 | . 1 . Heat Transferred 1150 | 125 925 100 Parts Sabotaged . | . . . Parts Stolen . | . . . Parts Stripped . | . . . Power Chain Reactions . | . . . Alert | -11 -10 -10 ------- Run | Yrd Mat Min Maximum Alert Level 1 | . 1 . Low Security (%) 56 | 100 43 100 Level 1 43 | . 56 . Level 2 . | . . . Level 3 . | . . . Level 4 . | . . . Level 5 . | . . . High Security . | . . . Max Security . | . . . Peak Influence 300 | 5 300 178 Initial 70 | . . 70 Average 153 | 1 167 131 Influence Increases 790 | 10 572 208 Destroy 0b10 Robot/C 440 | . 300 140 Destroy 0b10 Robot/NC 55 | 10 45 . Destroy Leader 100 | . 70 30 Successful Hack 18 | . 18 . Select Force Hacks 60 | . 60 . Disable Machine 60 | . 30 30 Destroy Structure 12 | . 4 8 Lose Combat Pursuer 45 | . 45 . Influence Decreases 702 | 10 390 302 Entered New Map 112 | . . 112 Time Decay 530 | 10 380 140 Lost Part 50 | . 10 40 Lost Ally 10 | . . 10 Squads Dispatched 3 | . 3 . Investigation 2 | . 2 . Extermination . | . . . Reinforcement 1 | . 1 . Assault . | . . . Garrison . | . . . Intercept . | . . . Searches Triggered . | . . . Construction Impeded . | . . . Haulers Reinforced . | . . . Active Scanning Responses . | . . . Cargo Convoy Interrupts . | . . . Stealth | -11 -10 -10 --------- Run | Yrd Mat Min Distress Signals 1 | . 1 . Communications Jammed . | . . . Distress Signals . | . . . Times Spotted 33 | . 23 10 Peak Tracking Total 3 | . 3 3 Tactical Retreats 4 | . 3 1 Traps | -11 -10 -10 ------- Run | Yrd Mat Min Traps Triggered 3 | . 3 . Indirectly . | . . . Trap Hack Attempts . | . . . Triggered . | . . . Disarmed . | . . . Reprogrammed . | . . . Reused . | . . . Traps Extracted . | . . . Installed . | . . . Triggered . | . . . Machines | -11 -10 -10 ---------- Run | Yrd Mat Min Machines Disabled 4 | . 2 2 Max in Single Turn 1 | . 1 1 Machines Repaired . | . . . Machines Dismantled . | . . . Machines Sabotaged . | . . . Overloaded Fab Kills . | . . . Hacking | -11 -10 -10 --------- Run | Yrd Mat Min Machines Accessed 7 | . 7 . Terminals 4 | . 4 . Fabricators . | . . . Repair Stations 1 | . 1 . Recycling Units 2 | . 2 . Scanalyzers . | . . . Garrison Access . | . . . Total Hacks 11 | . 11 . Successful 6 | . 6 . Failed 5 | . 5 . Catastrophic 1 | . 1 . Database Lockouts . | . . . Manual 8 | . 8 . Terminals 7 | . 7 . Fabricators . | . . . Repair Stations 1 | . 1 . Recycling Units 3 | . 3 . Scanalyzers . | . . . Garrison Access . | . . . Terminal Hacks 1 | . 1 . Locate Traps 1 | . 1 . Fabricator Hacks . | . . . Repair Station Hacks 1 | . 1 . Refit 1 | . 1 . Recycling Unit Hacks . | . . . Scanalyzer . | . . . Garrison Access Hacks . | . . . Unauthorized Hacks 4 | . 4 . Terminals 2 | . 2 . Assimilate 1 | . 1 . Operators 1 | . 1 . Fabricators . | . . . Repair Stations . | . . . Recycling Units 2 | . 2 . Tunnel 2 | . 2 . Scanalyzers . | . . . Garrison Access . | . . . Data Cores Recovered . | . . . Used . | . . . Hacking Detections 3 | . 3 . Full Trace Events . | . . . Feedback Events . | . . . Feedback Blocked . | . . . Robot Schematics Acquired . | . . . Robots Built . | . . . Authchips . | . . . Time . | . . . Total Robot Build Rating . | . . . Part Schematics Acquired . | . . . Parts Built . | . . . Authchips . | . . . Time . | . . . Total Part Build Rating . | . . . Part Studies Acquired . | . . . Parts Repaired . | . . . Time . | . . . Parts Recycled . | . . . Recycled Matter . | . . . Retrieved Matter . | . . . Retrieved Components . | . . . Parts Scanalyzed . | . . . Part Schematics Acquired . | . . . Parts Damaged . | . . . Bothacking | -11 -10 -10 ------------ Run | Yrd Mat Min Used RIF Installer . | . . . Robots Hacked . | . . . Non-combat . | . . . Combat . | . . . Robot Hacks Applied . | . . . Relay Couplers Released . | . . . Fabnet Peak Effective % . | . . . Robots Rewired . | . . . Allies Hacked . | . . . Hacks Repelled . | . . . Allies | -11 -10 -10 -------- Run | Yrd Mat Min Total Allies 1 | . 1 . Largest Group 1 | . 1 1 Highest-Rated Group 10 | . 10 10 Highest-Rated Ally 10 | . 10 10 Total Orders . | . . . Ally Attacks . | . . . Total Damage . | . . . Kills . | . . . Allies Corrupted . | . . . Allies Melted . | . . . X0-1V1 Amusement Gains 92 | . 22 70 Good Acts 2 | . . 2 Bad Acts 1 | . . 1 Intel | -11 -10 -10 ------- Run | Yrd Mat Min Active Infowar (turns) 487 | 31 456 . Seismic 487 | 31 456 . Robot Analysis Total . | . . . Derelict Logs Recovered 1 | . . 1 Drone Launches . | . . . Drone Recoveries . | . . . Exploration | -11 -10 -10 ------------- Run | Yrd Mat Min Turns Passed 1542 | 70 1188 284 Spaces Moved 1058 | 48 858 152 Core 1 | 1 . . Treads 27 | . 12 15 Legs . | . . . Wheels 1030 | 47 846 137 Hover . | . . . Flight . | . . . Fastest Speed 50 | 50 90 105 Average Speed 105 | 90 105 111 Slowest Speed 160 | 100 160 160 Overloaded Moves . | . . . Propulsion Burnouts . | . . . Robots Hopped . | . . . Potential Cave-ins 1 | . . 1 Cave-ins Triggered . | . . . Exploration Rate (%) 43 | 3 97 31 Regions Visited 2 Branch Regions 1 Pre-discovered Areas 2 | . 2 . Known Exits Taken . | . . . Unknown Exits Taken 2 | 1 1 . Scrap Searched . | . . . Spaces Dug . | . . . Terrain Destroyed 10 | . 2 8 Melee . | . . . Projectile 4 | . 2 2 AOE 6 | . . 6 Terrain Rammed . | . . . Walls Destroyed . | . . . Machines Disabled . | . . . Actions | -11 -10 -10 --------- Run | Yrd Mat Min Total 1315 | 61 1035 219 Wait 89 | . 70 19 Move 1056 | 47 857 152 Hop . | . . . Pick Up 22 | 2 14 6 Fast Attach 16 | 7 9 . Attach 3 | . 2 1 Detach 2 | . 2 . Swap 35 | . 24 11 Drop 15 | . 10 5 Fire 75 | 5 47 23 Melee . | . . . Ram . | . . . Kick . | . . . Crush . | . . . Escape Stasis . | . . . Rewire . | . . . Trap . | . . . Miscellaneous 2 | . . 2 Route ------- -11/Scrapyard -10/Materials (discovered 5 exits: [*Mat x2] / [*Min x2] / [*Sub]) -10/Mines History --------- Turn | Location | Event 12 | -11/Scrapyard | Discovered new exit (range 16) 71 | -11/Scrapyard | Entered Materials 326 | -10/Materials | Build established: Mutant 596 | -10/Materials | Discovered new exit (range 6) 719 | -10/Materials | Discovered new exit (range 12) 947 | -10/Materials | Discovered new exit (range 13) 984 | -10/Materials | Discovered new exit (range 10) 1061 | -10/Materials | Discovered new exit (range 9) 1186 | -10/Materials | Prayed at D.C.S.S. Altar Unit 1259 | -10/Materials | Entered Mines 1259 | -10/Mines | Accompanied by 1 ally 1262 | -10/Mines | Met a Derelict bent on vengeance 1298 | -10/Mines | Core integrity fell below 50% 1356 | -10/Mines | A weapon hastily lodged in a ceiling crevice suddenly fell to the ground 1436 | -10/Mines | YI-UF0 nonchalantly dropped a Grenade Launcher on the ground 1447 | -10/Mines | Ranged accuracy permanently improved by X0-1V1 (+5%; -50 max core) 1452 | -10/Mines | Learned Materials stockpile data 1452 | -10/Mines | X0-1V1 vaporized surrounding terrain (radius 15) 1538 | -10/Mines | Core integrity fell below 20% 1543 | -10/Mines | Destroyed by YI-UF0 with YI-UF0's Doublenader Last Messages --------------- 01515_ R-06 Scavenger collects Lgt. Treads. 01517_ Dropped Med. Battery. 01517_ U-05 Engineer builds a Wall. 01519_ R-06 Scavenger collects Lgt. Ion Engine. 01519_ Acquired Med. Battery. 01522_ U-05 Engineer builds a Wall. 01529_ Dropped Med. Battery. 01531_ Technician 1a destroyed. 01531_ U-05 Engineer lays Concrete. 01532_ U-05 Engineer builds a Wall. 01536_ The unstable cave ceiling collapses. 01536_ U-05 Engineer builds a Wall. 01539_ Lgt. Nuclear Core destroyed. 01540_ U-05 Engineer lays Concrete. 01541_ The unstable cave ceiling collapses. 01541_ Hvy. EM Pulse Gun destroyed. 01541_ U-05 Engineer builds a Wall. 01542_ The unstable cave ceiling collapses. 01543_ Backup Plating I destroyed. 01543_ X0-1V1 laughs nastily! Map ----- +----------------------------------------------------+ | ????????????????????????????????????????????? | | ????????????????????????????????????????????? | | ????????????????????????????????????????????? | | ????????????????????????????????????????????? | | ????????????????????????????????????????????? | | ????????????????????????????????????????????? | | ????????????????????????????????????????????? | | ????????????????????????????????????????????? | | ????????????????????????????????????????????? | | ?????????? # ## ##??????????????????????????? | | ???????? "" " ""## #??????????????????????? | | ????? "" """ ?????????????????????? | | ??? """ ;;;;;"" "##????????????????????? | | ?# "" ; " " ##???????????????????? | | # ; ;; " " ##??????????????????? | | ; ; " "";;##?????????????????? | | ; ;;;;;; " #????##???????????? | | ; ! ; " ";;; #???? ???????????? | | ; ; " " ; ##??? #???????????? | | ;;;;; ; " " ; ;#??? #?????#?????? | | """""";;; ; ; ; ; ; ;#??? ##??? ###???? | | " ; ; ; ;; ;#?## #### ##??? | | " ; ;;;; ;### #??? | | " """ ; # ## #??? | | " "" ;; #???? | | " ;; @ #????? | | " ;; #u ## #?????? | | # r;; # ##??????????? | | ## ##???????????? | | # # ##????????????? | | # # ; ## #?????????????? | | # ;; ;; ## #?????????????? | | # # ;; ;## #?????????????? | | # ## #?????????????? | | # ##### ##?????????????? | | ## #" ###??????????????? | | ?## ##" ##????????????????? | | ??### "" ##?????????????????? | | ????### " ;; #??????????????????? | | ??????#### ##### g ##??????????????????? | | ?????????######???# ##????? ?????????????? | | ??????????????????# ##????? ????????????? | | ??????????????????## #?????? ?????????????? | | ?????????????????### #????? ?????????????? | | ???????###???????# #????# ??????????????? | | ??????# ##?????# ####???# ???????????????? | | ??????# #?????# #?????# ????????????????? | | ???????# #?????# #????# #????????????????? | | ???????# ?????# #??## #????????????????? | | ??????## ?????# #??# #????????????????? | +----------------------------------------------------+ Best States ------------- Heat Dissipation 35 Energy Generation 14 Energy Capacity 250 Matter Stores 300 Matter Capacity 300 Sight Range 16 Terrain Scan Density 10 Armor Coverage 80 Evasion (%) 42 Recoil Reduction 2 Item Schematics ----------------- None Robot Schematics ------------------ None Fabricated ------------ Nothing Repaired ---------- Nothing Studied --------- None Alien Tech Used ----------------- None Achievements -------------- None Challenges ------------ None Game ------ Seed BoltReinforcedInsulator Manual? 0 Play Time 00:13:18 Cumulative 1008.1 hours Start 2026.08.12 @ 21:54:35 End 2026.08.13 @ 19:47:59 Sessions 3 Manual Loads 0 Difficulty Rogue Special Mode None Game No. 275 Rogue 275 Adventurer 0 Explorer 0 Win Type - Total 44 Types 13/9/10/2/2/0/4/1/1/2 Lore% 97 Gallery% 91 Achievement% 87 Wizard Run 0 Options --------- Layout 1 ASCII 0 Keyboard 0 Movement Mouse Keybinds 0 Fullscreen 2 Font 32/SmallcapsGlow Map View 50x35 Zoom Use 0% Tactical HUD 1 Map Filters NONE Filters NONE Steam 1 RUN: b49ade92-8f0d-436b-8201-911e69f2b6ad